Workbook

Sheet Учет спецодежды
R1: =X2 -> 2024-11-30 | T1: 2025-12-31 | U1: Рабочий | V1: ИТР | W1: Сегодня | X1: Вносим ДАТУ расчета
C2: вид спецодежды | D2: нормы | F2: Ф И.О. | G2: Место | H2: Должность | I2: Размер, рост | J2: получено | K2: надо получать | L2: Дата получения | M2: Что получено | N2: Дата следующего получения | O2: Меняем у первого наличие на складе | P2: Считает автоматом | R2: 1 - дата ранее заданного периода | S2: 1 - дата в заданном периоде | T2: 1 - дата позднее заданного периода | U2: Должность | W2: =TODAY() -> 2024-11-13 | X2: 2024-11-30
A3: 1 | B3: Ж | C3: Жилет утеп. | D3: 24 | E3: 24 | F3: Абдрахимова Наталья Айратовна | G3: СВЛ | H3: Контролер ЛП | I3: 88-92/158-164 | J3: =IF(N3<$X$2,0,1) -> 1 | K3: =IF(N3<$X$2,1,0) -> 0 | L3: 2024-11-11 | M3: =$C3 -> Жилет утеп. | N3: =DATE(YEAR($L3),MONTH($L3)+$E3,DAY($L3)) -> 2026-11-11 | O3: 0 | P3: =K3+O3 -> 0 | R3: =IF($N3<$R$1,1,0) -> 0 | S3: =IF(AND($N3>=$R$1,$N3<=$T$1),1,0) -> 0 | T3: =IF($N3>$T$1,1,0) -> 1 | U3: Рабочий
A4: 4 | B4: Ж | C4: Куртка утеп., ЖЕН. | D4: 24 | E4: 24 | F4: Абдрахимова Наталья Айратовна | G4: СВЛ | H4: Контролер ЛП | I4: 88-92/170-176 | J4: 1 | K4: 0 | L4: 2024-11-11 | M4: Куртка утеп., ЖЕН. | N4: 2026-11-11 | O4: 0 | P4: =K4+O4 -> 0 | R4: 0 | S4: 0 | T4: 1 | U4: Рабочий
A5: 7 | B5: Ж | C5: Ботинки | D5: 12 | E5: 12 | F5: Абдрахимова Наталья Айратовна | G5: СВЛ | H5: Контролер ЛП | I5: 36 | J5: 1 | K5: 0 | L5: 2023-12-20 | M5: Полуботинки | N5: 2024-12-20 | O5: 0 | P5: 0 | R5: 0 | S5: 1 | T5: 0 | U5: Рабочий
A6: 8 | B6: Ж | C6: Пояс | D6: 36 | E6: 36 | F6: Абдрахимова Наталья Айратовна | G6: СВЛ | H6: Контролер ЛП | I6: ML | J6: 1 | K6: 0 | L6: 2024-07-01 | M6: =$C6 -> Пояс | N6: 2027-07-01 | O6: 0 | P6: 0 | R6: 0 | S6: 0 | T6: 1 | U6: Рабочий
A7: 9 | B7: Ж | C7: Фартук | D7: 6 | E7: 12 | F7: Абдрахимова Наталья Айратовна | G7: СВЛ | H7: Контролер ЛП | J7: 1 | K7: 0 | L7: 2024-11-11 | M7: =$C7 -> Фартук | N7: 2025-11-11 | O7: =$F$1560 -> 53 | P7: =O7-J7 -> 52 | R7: 0 | S7: 1 | T7: 0 | U7: Рабочий
A8: 11 | B8: Ж | C8: Костюм или халат | D8: 12 | E8: 12 | F8: Абдрахимова Наталья Айратовна | G8: СВЛ | H8: Контролер ЛП | I8: 88-92/158-164 | J8: 1 | K8: 0 | L8: 2023-12-20 | M8: Халат ЖЕН. | N8: 2024-12-20 | O8: 0 | P8: 0 | R8: 0 | S8: 1 | T8: 0 | U8: Рабочий
A9: 12 | B9: Ж | C9: Жилет утеп. | D9: 24 | E9: 24 | F9: Абдусалямова Гульфания Магсумовна | G9: ПЧЛ | H9: Контролер ЛП | I9: 96-100/158-164 | J9: 0 | K9: 1 | M9: =$C9 -> Жилет утеп. | N9: 1901-12-31 | O9: 0 | P9: 1 | R9: 1 | S9: 0 | T9: 0 | U9: Рабочий
A10: 15 | B10: Ж | C10: Куртка утеп., ЖЕН. | D10: 24 | E10: 24 | F10: Абдусалямова Гульфания Магсумовна | G10: ПЧЛ | H10: Контролер ЛП | I10: 96-100/170-176 | J10: 0 | K10: 1 | M10: Куртка утеп., ЖЕН. | N10: 1901-12-31 | O10: 0 | P10: 1 | R10: 1 | S10: 0 | T10: 0 | U10: Рабочий
A11: 18 | B11: Ж | C11: Ботинки | D11: 12 | E11: 12 | F11: Абдусалямова Гульфания Магсумовна | G11: ПЧЛ | H11: Контролер ЛП | I11: 39 | J11: 1 | K11: 0 | L11: 2024-05-22 | M11: Полуботинки | N11: 2025-05-22 | O11: 0 | P11: 0 | R11: 0 | S11: 1 | T11: 0 | U11: Рабочий
A12: 19 | B12: Ж | C12: Пояс | D12: 36 | E12: 36 | F12: Абдусалямова Гульфания Магсумовна | G12: ПЧЛ | H12: Контролер ЛП | I12: ML | J12: 1 | K12: 0 | L12: 2024-07-01 | M12: =$C12 -> Пояс | N12: 2027-07-01 | O12: 0 | P12: 0 | R12: 0 | S12: 0 | T12: 1 | U12: Рабочий
A13: 20 | B13: Ж | C13: Фартук | D13: 6 | E13: 12 | F13: Абдусалямова Гульфания Магсумовна | G13: ПЧЛ | H13: Контролер ЛП | J13: 0 | K13: 1 | M13: =$C13 -> Фартук | N13: 1900-12-31 | O13: =P7 -> 52 | P13: =O13-J13 -> 52 | R13: 1 | S13: 0 | T13: 0 | U13: Рабочий
A14: 22 | B14: Ж | C14: Костюм или халат | D14: 12 | E14: 12 | F14: Абдусалямова Гульфания Магсумовна | G14: ПЧЛ | H14: Контролер ЛП | I14: 96-100/158-164 | J14: 1 | K14: 0 | L14: 2024-05-07 | M14: Халат ЖЕН. | N14: 2025-05-07 | O14: 0 | P14: 0 | R14: 0 | S14: 1 | T14: 0 | U14: Рабочий
A15: 23 | B15: Ж | C15: Ботинки | D15: 12 | E15: 12 | F15: Абрамова Елена Викторовна | G15: ПЧЛ | H15: Контролер ЛП | I15: 38 | J15: 0 | K15: 1 | M15: =C15 -> Ботинки | N15: 1900-12-31 | O15: 0 | P15: 1 | R15: 1 | S15: 0 | T15: 0 | U15: Рабочий
A16: 24 | B16: Ж | C16: Жилет утеп. | D16: 24 | E16: 24 | F16: Абрамова Елена Викторовна | G16: ПЧЛ | H16: Контролер ЛП | I16: 96-100/170-176 | J16: 1 | K16: 0 | L16: 2024-11-13 | M16: =$C16 -> Жилет утеп. | N16: 2026-11-13 | O16: 0 | P16: 0 | R16: 0 | S16: 0 | T16: 1 | U16: Рабочий
A17: 27 | B17: Ж | C17: Куртка утеп., ЖЕН. | D17: 24 | E17: 24 | F17: Абрамова Елена Викторовна | G17: ПЧЛ | H17: Контролер ЛП | I17: 96-100/170-176 | J17: 1 | K17: 0 | L17: 2024-11-13 | M17: Куртка утеп., ЖЕН. | N17: 2026-11-13 | O17: 0 | P17: 0 | R17: 0 | S17: 0 | T17: 1 | U17: Рабочий
A18: 30 | B18: Ж | C18: Пояс | D18: 36 | E18: 36 | F18: Абрамова Елена Викторовна | G18: ПЧЛ | H18: Контролер ЛП | I18: ML | J18: 1 | K18: 0 | L18: 2024-07-01 | M18: Пояс | N18: 2027-07-01 | O18: 0 | P18: 0 | R18: 0 | S18: 0 | T18: 1 | U18: Рабочий
A19: 31 | B19: Ж | C19: Фартук | D19: 6 | E19: 12 | F19: Абрамова Елена Викторовна | G19: ПЧЛ | H19: Контролер ЛП | J19: 0 | K19: 1 | L19: 2023-11-10 | M19: Фартук | N19: 2024-11-10 | O19: =P13 -> 52 | P19: =O19-J19 -> 52 | R19: 1 | S19: 0 | T19: 0 | U19: Рабочий
A20: 33 | B20: Ж | C20: Костюм или халат | D20: 12 | E20: 12 | F20: Абрамова Елена Викторовна | G20: ПЧЛ | H20: Контролер ЛП | I20: 96-100/170-176 | J20: 1 | K20: 0 | L20: 2024-11-13 | M20: Халат ЖЕН. | N20: 2025-11-13 | O20: 0 | P20: 0 | R20: 0 | S20: 1 | T20: 0 | U20: Рабочий
A21: 34 | B21: Ж | C21: Ботинки | D21: 12 | E21: 12 | F21: Агалтинова Светлана Ренадовна | G21: ПСЛ | H21: Контролер ЛП | I21: 38 | J21: 1 | K21: 0 | L21: 2024-04-23 | M21: Ботинки | N21: 2025-04-23 | O21: 0 | P21: 0 | R21: 0 | S21: 1 | T21: 0 | U21: Рабочий
A22: 35 | B22: Ж | C22: Жилет утеп. | D22: 24 | E22: 24 | F22: Агалтинова Светлана Ренадовна | G22: ПСЛ | H22: Контролер ЛП | I22: 104-108/158-164 | J22: 1 | K22: 0 | L22: 2024-04-23 | M22: =$C22 -> Жилет утеп. | N22: 2026-04-23 | O22: 0 | P22: 0 | R22: 0 | S22: 0 | T22: 1 | U22: Рабочий
A23: 37 | B23: Ж | C23: Костюм или халат | D23: 12 | E23: 12 | F23: Агалтинова Светлана Ренадовна | G23: ПСЛ | H23: Контролер ЛП | I23: 112-116/182-188 | J23: 1 | K23: 0 | L23: 2024-04-23 | M23: Костюм | N23: 2025-04-23 | O23: 0 | P23: 0 | R23: 0 | S23: 1 | T23: 0 | U23: Рабочий
A24: 39 | B24: Ж | C24: Куртка утеп., ЖЕН. | D24: 24 | E24: 24 | F24: Агалтинова Светлана Ренадовна | G24: ПСЛ | H24: Контролер ЛП | I24: 104-108/170-176 | J24: 1 | K24: 0 | L24: 2024-10-07 | M24: =$C24 -> Куртка утеп., ЖЕН. | N24: 2026-10-07 | O24: 0 | P24: 0 | R24: 0 | S24: 0 | T24: 1 | U24: Рабочий
A25: 42 | B25: Ж | C25: Пояс | D25: 36 | E25: 36 | F25: Агалтинова Светлана Ренадовна | G25: ПСЛ | H25: Контролер ЛП | J25: 1 | K25: 0 | L25: 2024-11-12 | M25: Пояс | N25: 2027-11-12 | O25: 0 | P25: 0 | R25: 0 | S25: 0 | T25: 1 | U25: Рабочий
A26: 43 | B26: Ж | C26: Фартук | D26: 6 | E26: 12 | F26: Агалтинова Светлана Ренадовна | G26: ПСЛ | H26: Контролер ЛП | J26: 0 | K26: 1 | M26: Фартук | N26: 1900-12-31 | O26: =P19 -> 52 | P26: =O26-J26 -> 52 | R26: 1 | S26: 0 | T26: 0 | U26: Рабочий
A27: 45 | B27: Ж | C27: Жилет утеп. | D27: 24 | E27: 24 | F27: Александрова Светлана Викторовна | G27: ПЦЛ | H27: Контролер ЛП | I27: 112-116/170-176 | J27: 1 | K27: 0 | L27: 2024-11-11 | M27: Жилет утеп. | N27: 2026-11-11 | O27: 0 | P27: 0 | R27: 0 | S27: 0 | T27: 1 | U27: Рабочий
A28: 48 | B28: Ж | C28: Куртка утеп., ЖЕН. | D28: 24 | E28: 24 | F28: Александрова Светлана Викторовна | G28: ПЦЛ | H28: Контролер ЛП | I28: 112-116/170-176 | J28: 1 | K28: 0 | L28: 2024-11-11 | M28: Куртка утеп., ЖЕН. | N28: 2026-11-11 | O28: 0 | P28: 0 | R28: 0 | S28: 0 | T28: 1 | U28: Рабочий
A29: 51 | B29: Ж | C29: Ботинки | D29: 12 | E29: 12 | F29: Александрова Светлана Викторовна | G29: ПЦЛ | H29: Контролер ЛП | I29: 38 | J29: 1 | K29: 0 | L29: 2023-12-20 | M29: Полуботинки | N29: 2024-12-20 | O29: 0 | P29: 0 | R29: 0 | S29: 1 | T29: 0 | U29: Рабочий
A30: 52 | B30: Ж | C30: Пояс | D30: 36 | E30: 36 | F30: Александрова Светлана Викторовна | G30: ПЦЛ | H30: Контролер ЛП | I30: XL | J30: 1 | K30: 0 | L30: 2024-07-01 | M30: =$C30 -> Пояс | N30: 2027-07-01 | O30: 0 | P30: 0 | R30: 0 | S30: 0 | T30: 1 | U30: Рабочий
A31: 53 | B31: Ж | C31: Фартук | D31: 6 | E31: 12 | F31: Александрова Светлана Викторовна | G31: ПЦЛ | H31: Контролер ЛП | J31: 1 | K31: 0 | L31: 2024-11-11 | M31: =$C31 -> Фартук | N31: 2025-11-11 | O31: =P26 -> 52 | P31: =O31-J31 -> 51 | R31: 0 | S31: 1 | T31: 0 | U31: Рабочий
A32: 55 | B32: Ж | C32: Костюм или халат | D32: 12 | E32: 24 | F32: Александрова Светлана Викторовна | G32: ПЦЛ | H32: Контролер ЛП | I32: 104-108/182-188 | J32: =IF(N32<$X$2,0,1) -> 1 | K32: =IF(N32<$X$2,1,0) -> 0 | L32: 2024-11-11 | M32: Костюм | N32: 2026-11-11 | O32: 0 | P32: 0 | R32: 0 | S32: 0 | T32: 1 | U32: Рабочий
A33: 55 | B33: Ж | C33: Костюм или халат | D33: 12 | E33: 24 | F33: Александрова Светлана Викторовна | G33: ПЦЛ | H33: Контролер ЛП | I33: 112-116/158-164 | J33: 1 | K33: 0 | L33: 2024-11-11 | M33: Халат ЖЕН. | N33: 2026-11-11 | O33: 0 | P33: 0 | R33: 0 | S33: 0 | T33: 1 | U33: Рабочий
A34: 57 | B34: Ж | C34: Ботинки или полуботинки | D34: 12 | E34: 12 | F34: Алексеева Татьяна Александровна | G34: ПЧЛ | H34: Мастер | I34: 40 | J34: 0 | K34: 1 | M34: Ботинки | N34: 1900-12-31 | O34: 0 | P34: 1 | R34: 1 | S34: 0 | T34: 0 | U34: ИТР
A35: 58 | B35: Ж | C35: Жилет утеп. | D35: 24 | E35: 24 | F35: Алексеева Татьяна Александровна | G35: ПЧЛ | H35: Мастер | J35: 0 | K35: 1 | M35: =$C35 -> Жилет утеп. | N35: 1901-12-31 | O35: 0 | P35: 1 | R35: 1 | S35: 0 | T35: 0 | U35: ИТР
A36: 60 | B36: Ж | C36: Костюм | D36: 12 | E36: 24 | F36: Алексеева Татьяна Александровна | G36: ПЧЛ | H36: Мастер | J36: 0 | K36: 1 | M36: Костюм | N36: 1901-12-31 | O36: 0 | P36: 1 | R36: 1 | S36: 0 | T36: 0 | U36: ИТР
A37: 62 | B37: Ж | C37: Куртка утеп., ЖЕН. | D37: 24 | E37: 24 | F37: Алексеева Татьяна Александровна | G37: ПЧЛ | H37: Мастер | I37: 112-116/170-176 | J37: 1 | K37: 0 | L37: 2023-04-05 | M37: Куртка утеп., ЖЕН. | N37: 2025-04-05 | O37: 0 | P37: 0 | R37: 0 | S37: 1 | T37: 0 | U37: ИТР
A38: 65 | B38: Ж | C38: Пояс | D38: 36 | E38: 36 | F38: Алексеева Татьяна Александровна | G38: ПЧЛ | H38: Мастер | I38: XL | J38: =IF(N38<$X$2,0,1) -> 1 | K38: =IF(N38<$X$2,1,0) -> 0 | L38: 2024-07-01 | M38: Пояс | N38: =DATE(YEAR($L38),MONTH($L38)+$E38,DAY($L38)) -> 2027-07-01 | O38: 0 | P38: =K38+O38 -> 0 | R38: =IF($N38<$R$1,1,0) -> 0 | S38: =IF(AND($N38>=$R$1,$N38<=$T$1),1,0) -> 0 | T38: =IF($N38>$T$1,1,0) -> 1 | U38: ИТР
A39: 67 | B39: Ж | C39: Жилет утеп. | D39: 24 | E39: 24 | F39: Аликбаева Дина Ямлихановна | G39: ПСЛ | H39: Контролер ЛП | I39: 104-108/158-164 | J39: 1 | K39: 0 | L39: 2022-12-23 | M39: Жилет утеп. | N39: 2024-12-23 | O39: 0 | P39: 0 | R39: 0 | S39: 1 | T39: 0 | U39: Рабочий
A40: 70 | B40: Ж | C40: Куртка утеп., ЖЕН. | D40: 24 | E40: 24 | F40: Аликбаева Дина Ямлихановна | G40: ПСЛ | H40: Контролер ЛП | I40: 104-108/170-176 | J40: 1 | K40: 0 | L40: 2022-12-23 | M40: Куртка утеп., ЖЕН. | N40: 2024-12-23 | O40: 0 | P40: 0 | R40: 0 | S40: 1 | T40: 0 | U40: Рабочий
A41: 73 | B41: Ж | C41: Ботинки | D41: 12 | E41: 12 | F41: Аликбаева Дина Ямлихановна | G41: ПСЛ | H41: Контролер ЛП | I41: 34 | J41: 1 | K41: 0 | L41: 2024-08-20 | M41: Полуботинки | N41: 2025-08-20 | O41: 0 | P41: 0 | R41: 0 | S41: 1 | T41: 0 | U41: Рабочий
A42: 74 | B42: Ж | C42: Пояс | D42: 36 | E42: 36 | F42: Аликбаева Дина Ямлихановна | G42: ПСЛ | H42: Контролер ЛП | I42: ML | J42: 1 | K42: 0 | L42: 2024-07-01 | M42: =$C42 -> Пояс | N42: 2027-07-01 | O42: 0 | P42: 0 | R42: 0 | S42: 0 | T42: 1 | U42: Рабочий
A43: 75 | B43: Ж | C43: Фартук | D43: 6 | E43: 12 | F43: Аликбаева Дина Ямлихановна | G43: ПСЛ | H43: Контролер ЛП | J43: 0 | K43: 1 | M43: =$C43 -> Фартук | N43: 1900-12-31 | O43: =P31 -> 51 | P43: =O43-J43 -> 51 | R43: 1 | S43: 0 | T43: 0 | U43: Рабочий
A44: 77 | B44: Ж | C44: Костюм или халат | D44: 12 | E44: 24 | F44: Аликбаева Дина Ямлихановна | G44: ПСЛ | H44: Контролер ЛП | J44: 0 | K44: 1 | M44: Халат ЖЕН. | N44: 1901-12-31 | O44: 0 | P44: 1 | R44: 1 | S44: 0 | T44: 0 | U44: Рабочий
A45: 78 | B45: Ж | C45: Жилет утеп. | D45: 24 | E45: 24 | F45: Амисартынова Алсу Зуфаровна | G45: ПЦЛ | H45: Контролер ЛП | I45: 96-100/158-164 | J45: 1 | K45: 0 | L45: 2023-12-15 | M45: =$C45 -> Жилет утеп. | N45: 2025-12-15 | O45: 0 | P45: 0 | R45: 0 | S45: 1 | T45: 0 | U45: Рабочий
A46: 80 | B46: Ж | C46: Костюм или халат | D46: 12 | E46: 12 | F46: Амисартынова Алсу Зуфаровна | G46: ПЦЛ | H46: Контролер ЛП | I46: 104-108/182-188 | J46: 1 | K46: 0 | L46: 2024-05-03 | M46: Костюм | N46: 2025-05-03 | O46: 0 | P46: 0 | R46: 0 | S46: 1 | T46: 0 | U46: Рабочий
A47: 82 | B47: Ж | C47: Куртка утеп., ЖЕН. | D47: 24 | E47: 24 | F47: Амисартынова Алсу Зуфаровна | G47: ПЦЛ | H47: Контролер ЛП | J47: 0 | K47: 1 | M47: =$C47 -> Куртка утеп., ЖЕН. | N47: 1901-12-31 | O47: 0 | P47: 1 | R47: 1 | S47: 0 | T47: 0 | U47: Рабочий
A48: 85 | B48: Ж | C48: Ботинки | D48: 12 | E48: 12 | F48: Амисартынова Алсу Зуфаровна | G48: ПЦЛ | H48: Контролер ЛП | I48: 39 | J48: 1 | K48: 0 | L48: 2023-12-15 | M48: Полуботинки | N48: 2024-12-15 | O48: 0 | P48: 0 | R48: 0 | S48: 1 | T48: 0 | U48: Рабочий
A49: 86 | B49: Ж | C49: Пояс | D49: 36 | E49: 36 | F49: Амисартынова Алсу Зуфаровна | G49: ПЦЛ | H49: Контролер ЛП | I49: XL | J49: 1 | K49: 0 | L49: 2024-07-01 | M49: =$C49 -> Пояс | N49: 2027-07-01 | O49: 0 | P49: 0 | R49: 0 | S49: 0 | T49: 1 | U49: Рабочий
A50: 87 | B50: Ж | C50: Фартук | D50: 6 | E50: 12 | F50: Амисартынова Алсу Зуфаровна | G50: ПЦЛ | H50: Контролер ЛП | J50: 1 | K50: 0 | L50: 2023-12-14 | M50: Фартук | N50: 2024-12-14 | O50: =P43 -> 51 | P50: =O50-J50 -> 50 | R50: 0 | S50: 1 | T50: 0 | U50: Рабочий
A51: 89 | B51: Ж | C51: Жилет утеп. | D51: 24 | E51: 24 | F51: Асланова Наталья Александровна | G51: ПЧЛ | H51: Контролер ЛП | J51: 0 | K51: 1 | M51: Жилет утеп. | N51: 1901-12-31 | O51: 0 | P51: 1 | R51: 1 | S51: 0 | T51: 0 | U51: Рабочий
A52: 92 | B52: Ж | C52: Куртка утеп., ЖЕН. | D52: 24 | E52: 24 | F52: Асланова Наталья Александровна | G52: ПЧЛ | H52: Контролер ЛП | J52: 0 | K52: 1 | M52: Куртка утеп., ЖЕН. | N52: 1901-12-31 | O52: 0 | P52: 1 | R52: 1 | S52: 0 | T52: 0 | U52: Рабочий
A53: 95 | B53: Ж | C53: Пояс | D53: 36 | E53: 36 | F53: Асланова Наталья Александровна | G53: ПЧЛ | H53: Контролер ЛП | I53: XL | J53: 1 | K53: 0 | L53: 2024-07-01 | M53: Пояс | N53: 2027-07-01 | O53: 0 | P53: 0 | R53: 0 | S53: 0 | T53: 1 | U53: Рабочий
A54: 96 | B54: Ж | C54: Фартук | D54: 6 | E54: 12 | F54: Асланова Наталья Александровна | G54: ПЧЛ | H54: Контролер ЛП | J54: 0 | K54: 1 | M54: Фартук | N54: 1900-12-31 | O54: =P50 -> 50 | P54: =O54-J54 -> 50 | R54: 1 | S54: 0 | T54: 0 | U54: Рабочий
A55: 98 | B55: Ж | C55: Костюм или халат | D55: 12 | E55: 24 | F55: Асланова Наталья Александровна | G55: ПЧЛ | H55: Контролер ЛП | J55: 0 | K55: 1 | M55: Халат ЖЕН. | N55: 1901-12-31 | O55: 0 | P55: 1 | R55: 1 | S55: 0 | T55: 0 | U55: Рабочий
A56: 99 | B56: Ж | C56: Жилет утеп. | D56: 24 | E56: 24 | F56: Асташова Эльмира Фандасовна | G56: ПЧЛ | H56: Контролер ЛП | I56: 96-100/158-164 | J56: 1 | K56: 0 | L56: 2024-11-07 | M56: =$C56 -> Жилет утеп. | N56: 2026-11-07 | O56: 0 | P56: 0 | R56: 0 | S56: 0 | T56: 1 | U56: Рабочий
A57: 102 | B57: Ж | C57: Куртка утеп., ЖЕН. | D57: 24 | E57: 24 | F57: Асташова Эльмира Фандасовна | G57: ПЧЛ | H57: Контролер ЛП | I57: 96-100/170-176 | J57: 1 | K57: 0 | L57: 2024-01-26 | M57: Куртка утеп., ЖЕН. | N57: 2026-01-26 | O57: 0 | P57: 0 | R57: 0 | S57: 0 | T57: 1 | U57: Рабочий
A58: 105 | B58: Ж | C58: Ботинки | D58: 12 | E58: 12 | F58: Асташова Эльмира Фандасовна | G58: ПЧЛ | H58: Контролер ЛП | I58: 38 | J58: 1 | K58: 0 | L58: 2024-05-07 | M58: Полуботинки | N58: 2025-05-07 | O58: 0 | P58: 0 | R58: 0 | S58: 1 | T58: 0 | U58: Рабочий
A59: 106 | B59: Ж | C59: Пояс | D59: 36 | E59: 36 | F59: Асташова Эльмира Фандасовна | G59: ПЧЛ | H59: Контролер ЛП | I59: М | J59: 1 | K59: 0 | L59: 2024-07-09 | M59: =$C59 -> Пояс | N59: 2027-07-09 | O59: 0 | P59: 0 | R59: 0 | S59: 0 | T59: 1 | U59: Рабочий
A60: 107 | B60: Ж | C60: Фартук | D60: 6 | E60: 12 | F60: Асташова Эльмира Фандасовна | G60: ПЧЛ | H60: Контролер ЛП | J60: 0 | K60: 1 | M60: =$C60 -> Фартук | N60: 1900-12-31 | O60: 0 | P60: =O60-J60 -> 0 | R60: 1 | S60: 0 | T60: 0 | U60: Рабочий
A61: 109 | B61: Ж | C61: Костюм или халат | D61: 12 | E61: 12 | F61: Асташова Эльмира Фандасовна | G61: ПЧЛ | H61: Контролер ЛП | I61: 96-100/158-164 | J61: 1 | K61: 0 | L61: 2024-05-07 | M61: Халат ЖЕН. | N61: 2025-05-07 | O61: 0 | P61: 0 | R61: 0 | S61: 1 | T61: 0 | U61: Рабочий
A62: 110 | B62: Ж | C62: Жилет утеп. | D62: 24 | E62: 24 | F62: Асылбаева Резеда Фаритовна | G62: ПСЛ | H62: Контролер ЛП | I62: 96-100/158-164 | J62: 1 | K62: 0 | L62: 2024-01-24 | M62: =$C62 -> Жилет утеп. | N62: 2026-01-24 | O62: 0 | P62: 0 | R62: 0 | S62: 0 | T62: 1 | U62: Рабочий
A63: 113 | B63: Ж | C63: Куртка утеп., ЖЕН. | D63: 24 | E63: 24 | F63: Асылбаева Резеда Фаритовна | G63: ПСЛ | H63: Контролер ЛП | J63: 0 | K63: 1 | M63: Куртка утеп., ЖЕН. | N63: 1901-12-31 | O63: 0 | P63: 1 | R63: 1 | S63: 0 | T63: 0 | U63: Рабочий
A64: 116 | B64: Ж | C64: Ботинки | D64: 12 | E64: 12 | F64: Асылбаева Резеда Фаритовна | G64: ПСЛ | H64: Контролер ЛП | I64: 40 | J64: 0 | K64: 1 | M64: Полуботинки | N64: 1900-12-31 | O64: 0 | P64: 1 | R64: 1 | S64: 0 | T64: 0 | U64: Рабочий
A65: 117 | B65: Ж | C65: Пояс | D65: 36 | E65: 36 | F65: Асылбаева Резеда Фаритовна | G65: ПСЛ | H65: Контролер ЛП | I65: М | J65: 1 | K65: 0 | L65: 2024-07-09 | M65: =$C65 -> Пояс | N65: 2027-07-09 | O65: 0 | P65: 0 | R65: 0 | S65: 0 | T65: 1 | U65: Рабочий
A66: 118 | B66: Ж | C66: Фартук | D66: 6 | E66: 12 | F66: Асылбаева Резеда Фаритовна | G66: ПСЛ | H66: Контролер ЛП | J66: 0 | K66: 1 | M66: =$C66 -> Фартук | N66: 1900-12-31 | O66: 0 | P66: =O66-J66 -> 0 | R66: 1 | S66: 0 | T66: 0 | U66: Рабочий
A67: 120 | B67: Ж | C67: Костюм или халат | D67: 12 | E67: 12 | F67: Асылбаева Резеда Фаритовна | G67: ПСЛ | H67: Контролер ЛП | J67: 1 | K67: 0 | L67: 24.01.2024 9:53:57 | M67: Халат ЖЕН. | N67: 2025-01-24 | O67: 0 | P67: 0 | R67: 0 | S67: 1 | T67: 0 | U67: Рабочий
A68: 121 | B68: Ж | C68: Жилет утеп. | D68: 24 | E68: 24 | F68: Аталипова Розалия Сабиряновна | G68: ПЧЛ | H68: Контролер ЛП | J68: 0 | K68: 1 | M68: =$C68 -> Жилет утеп. | N68: 1901-12-31 | O68: 0 | P68: 1 | R68: 1 | S68: 0 | T68: 0 | U68: Рабочий
A69: 124 | B69: Ж | C69: Куртка утеп., ЖЕН. | D69: 24 | E69: 24 | F69: Аталипова Розалия Сабиряновна | G69: ПЧЛ | H69: Контролер ЛП | J69: 0 | K69: 1 | M69: Куртка утеп., ЖЕН. | N69: 1901-12-31 | O69: 0 | P69: 1 | R69: 1 | S69: 0 | T69: 0 | U69: Рабочий
A70: 127 | B70: Ж | C70: Ботинки | D70: 12 | E70: 12 | F70: Аталипова Розалия Сабиряновна | G70: ПЧЛ | H70: Контролер ЛП | I70: 38 | J70: 0 | K70: 1 | M70: Полуботинки | N70: 1900-12-31 | O70: 0 | P70: 1 | R70: 1 | S70: 0 | T70: 0 | U70: Рабочий
A71: 128 | B71: Ж | C71: Пояс | D71: 36 | E71: 36 | F71: Аталипова Розалия Сабиряновна | G71: ПЧЛ | H71: Контролер ЛП | I71: XL | J71: 1 | K71: 0 | L71: 2024-07-01 | M71: =$C71 -> Пояс | N71: 2027-07-01 | O71: 0 | P71: 0 | R71: 0 | S71: 0 | T71: 1 | U71: Рабочий
A72: 129 | B72: Ж | C72: Фартук | D72: 6 | E72: 12 | F72: Аталипова Розалия Сабиряновна | G72: ПЧЛ | H72: Контролер ЛП | J72: =IF(N72<$X$2,0,1) -> 0 | K72: =IF(N72<$X$2,1,0) -> 1 | M72: =$C72 -> Фартук | N72: =DATE(YEAR($L72),MONTH($L72)+$E72,DAY($L72)) -> 1900-12-31 | O72: 0 | P72: =O72-J72 -> 0 | R72: =IF($N72<$R$1,1,0) -> 1 | S72: =IF(AND($N72>=$R$1,$N72<=$T$1),1,0) -> 0 | T72: =IF($N72>$T$1,1,0) -> 0 | U72: Рабочий
A73: 131 | B73: Ж | C73: Костюм или халат | D73: 12 | E73: 12 | F73: Аталипова Розалия Сабиряновна | G73: ПЧЛ | H73: Контролер ЛП | J73: 0 | K73: 1 | M73: Халат ЖЕН. | N73: 1900-12-31 | O73: 0 | P73: =K73+O73 -> 1 | R73: 1 | S73: 0 | T73: 0 | U73: Рабочий
A74: 132 | B74: Ж | C74: Жилет утеп. | D74: 24 | E74: 24 | F74: Ахматгалеева Айгуль Мухтаровна | G74: ПСЛ | H74: Контролер ЛП | I74: 96-100/170-176 | J74: 1 | K74: 0 | L74: 2024-11-12 | M74: =$C74 -> Жилет утеп. | N74: 2026-11-12 | O74: 0 | P74: 0 | R74: 0 | S74: 0 | T74: 1 | U74: Рабочий
A75: 135 | B75: Ж | C75: Куртка утеп., ЖЕН. | D75: 24 | E75: 24 | F75: Ахматгалеева Айгуль Мухтаровна | G75: ПСЛ | H75: Контролер ЛП | I75: 96-100/170-176 | J75: 1 | K75: 0 | L75: 2024-11-12 | M75: Куртка утеп., ЖЕН. | N75: 2026-11-12 | O75: 0 | P75: 0 | R75: 0 | S75: 0 | T75: 1 | U75: Рабочий
A76: 138 | B76: Ж | C76: Ботинки | D76: 12 | E76: 12 | F76: Ахматгалеева Айгуль Мухтаровна | G76: ПСЛ | H76: Контролер ЛП | I76: 36 | J76: 1 | K76: 0 | L76: 2024-06-17 | M76: Полуботинки | N76: 2025-06-17 | O76: 0 | P76: 0 | R76: 0 | S76: 1 | T76: 0 | U76: Рабочий
A77: 139 | B77: Ж | C77: Пояс | D77: 36 | E77: 36 | F77: Ахматгалеева Айгуль Мухтаровна | G77: ПСЛ | H77: Контролер ЛП | I77: ML | J77: 1 | K77: 0 | L77: 2024-07-01 | M77: =$C77 -> Пояс | N77: 2027-07-01 | O77: 0 | P77: 0 | R77: 0 | S77: 0 | T77: 1 | U77: Рабочий
A78: 140 | B78: Ж | C78: Фартук | D78: 6 | E78: 12 | F78: Ахматгалеева Айгуль Мухтаровна | G78: ПСЛ | H78: Контролер ЛП | J78: 1 | K78: 0 | L78: 2024-11-12 | M78: =$C78 -> Фартук | N78: 2025-11-12 | O78: 0 | P78: =O78-J78 -> -1 | R78: 0 | S78: 1 | T78: 0 | U78: Рабочий
A79: 142 | B79: Ж | C79: Костюм или халат | D79: 12 | E79: 12 | F79: Ахматгалеева Айгуль Мухтаровна | G79: ПСЛ | H79: Контролер ЛП | J79: 1 | K79: 0 | L79: 2023-12-08 | M79: Халат ЖЕН. | N79: 2024-12-08 | O79: 0 | P79: 0 | R79: 0 | S79: 1 | T79: 0 | U79: Рабочий
A80: 144 | B80: М | C80: Жилет утеп. | D80: 24 | E80: 24 | F80: Ахматхузин Рифат Артурович | G80: ПЧЛ | H80: Разметчик | J80: 0 | K80: 1 | M80: =$C80 -> Жилет утеп. | N80: 1901-12-31 | O80: 0 | P80: 1 | R80: 1 | S80: 0 | T80: 0 | U80: Рабочий
A81: 146 | B81: М | C81: Куртка утеп., МУЖ. | D81: 24 | E81: 24 | F81: Ахматхузин Рифат Артурович | G81: ПЧЛ | H81: Разметчик | I81: 104-108/170-176 | J81: 1 | K81: 0 | L81: 2023-09-12 | M81: =$C81 -> Куртка утеп., МУЖ. | N81: 2025-09-12 | O81: 0 | P81: 0 | R81: 0 | S81: 1 | T81: 0 | U81: Рабочий
A82: 147 | B82: М | C82: Налокотник | D82: 12 | E82: 12 | F82: Ахматхузин Рифат Артурович | G82: ПЧЛ | H82: Разметчик | J82: 0 | K82: 1 | M82: Налокотник | N82: 1900-12-31 | O82: 0 | P82: 1 | R82: 1 | S82: 0 | T82: 0 | U82: Рабочий
A83: 150 | B83: М | C83: Ботинки или полуботинки | D83: 12 | E83: 12 | F83: Ахматхузин Рифат Артурович | G83: ПЧЛ | H83: Разметчик | J83: 0 | K83: 1 | N83: 1900-12-31 | O83: 0 | P83: 1 | R83: 1 | S83: 0 | T83: 0 | U83: Рабочий
A84: 151 | B84: М | C84: Пояс | D84: 36 | E84: 36 | F84: Ахматхузин Рифат Артурович | G84: ПЧЛ | H84: Разметчик | I84: ML | J84: 1 | K84: 0 | L84: 2024-07-01 | M84: =$C84 -> Пояс | N84: 2027-07-01 | O84: 0 | P84: 0 | R84: 0 | S84: 0 | T84: 1 | U84: Рабочий
A85: 153 | B85: М | C85: Костюм или халат | D85: 12 | E85: 24 | F85: Ахматхузин Рифат Артурович | G85: ПЧЛ | H85: Разметчик | I85: 96-100/182-188 | J85: 1 | K85: 0 | L85: 2024-10-22 | M85: Халат МУЖ. | N85: 2026-10-22 | O85: 0 | P85: 0 | R85: 0 | S85: 0 | T85: 1 | U85: Рабочий
A86: 154 | B86: Ж | C86: Жилет утеп. | D86: 24 | E86: 24 | F86: Ахметшина Лилия Фанисовна | G86: СВЛ | H86: Контролер ЛП | I86: 88-92/158-164 | J86: 1 | K86: 0 | L86: 2023-09-08 | M86: =$C86 -> Жилет утеп. | N86: 2025-09-08 | O86: 0 | P86: 0 | R86: 0 | S86: 1 | T86: 0 | U86: Рабочий
A87: 157 | B87: Ж | C87: Куртка утеп., ЖЕН. | D87: 24 | E87: 24 | F87: Ахметшина Лилия Фанисовна | G87: СВЛ | H87: Контролер ЛП | I87: 80-84/170-176 | J87: 1 | K87: 0 | L87: 2023-09-08 | M87: Куртка утеп., ЖЕН. | N87: 2025-09-08 | O87: 0 | P87: 0 | R87: 0 | S87: 1 | T87: 0 | U87: Рабочий
A88: 160 | B88: Ж | C88: Ботинки | D88: 12 | E88: 12 | F88: Ахметшина Лилия Фанисовна | G88: СВЛ | H88: Контролер ЛП | I88: 38 | J88: 1 | K88: 0 | L88: 2023-12-15 | M88: Полуботинки | N88: 2024-12-15 | O88: 0 | P88: 0 | R88: 0 | S88: 1 | T88: 0 | U88: Рабочий
A89: 161 | B89: Ж | C89: Костюм или халат | D89: 12 | E89: 12 | F89: Ахметшина Лилия Фанисовна | G89: СВЛ | H89: Контролер ЛП | J89: 0 | K89: 1 | L89: 2023-11-07 | M89: Полуботинки | N89: 2024-11-07 | O89: 0 | P89: 1 | R89: 1 | S89: 0 | T89: 0 | U89: Рабочий
A90: 162 | B90: Ж | C90: Пояс | D90: 36 | E90: 36 | F90: Ахметшина Лилия Фанисовна | G90: СВЛ | H90: Контролер ЛП | I90: М | J90: 1 | K90: 0 | L90: 2024-07-09 | M90: =$C90 -> Пояс | N90: 2027-07-09 | O90: 0 | P90: 0 | R90: 0 | S90: 0 | T90: 1 | U90: Рабочий
A91: 163 | B91: Ж | C91: Фартук | D91: 6 | E91: 12 | F91: Ахметшина Лилия Фанисовна | G91: СВЛ | H91: Контролер ЛП | J91: 0 | K91: 1 | L91: 2023-10-09 | M91: Фартук | N91: 2024-10-09 | O91: 0 | P91: =O91-J91 -> 0 | R91: 1 | S91: 0 | T91: 0 | U91: Рабочий
A92: 165 | B92: Ж | C92: Жилет утеп. | D92: 24 | E92: 24 | F92: Бабикова Аделя Альбертовна | G92: ПСЛ | H92: Контролер ЛП | I92: 96-100/158-164 | J92: 1 | K92: 0 | L92: 2024-01-16 | M92: Жилет утеп. | N92: 2026-01-16 | O92: 0 | P92: 0 | R92: 0 | S92: 0 | T92: 1 | U92: Рабочий
A93: 168 | B93: Ж | C93: Куртка утеп., ЖЕН. | D93: 24 | E93: 24 | F93: Бабикова Аделя Альбертовна | G93: ПСЛ | H93: Контролер ЛП | I93: 104-108/170-176 | J93: 1 | K93: 0 | L93: 2023-01-20 | M93: Куртка утеп., ЖЕН. | N93: 2025-01-20 | O93: 0 | P93: 0 | R93: 0 | S93: 1 | T93: 0 | U93: Рабочий
A94: 171 | B94: Ж | C94: Ботинки | D94: 12 | E94: 12 | F94: Бабикова Аделя Альбертовна | G94: ПСЛ | H94: Контролер ЛП | I94: 37 | J94: 1 | K94: 0 | L94: 2024-01-16 | M94: Полуботинки | N94: 2025-01-16 | O94: 0 | P94: 0 | R94: 0 | S94: 1 | T94: 0 | U94: Рабочий
A95: 172 | B95: Ж | C95: Пояс | D95: 36 | E95: 36 | F95: Бабикова Аделя Альбертовна | G95: ПСЛ | H95: Контролер ЛП | I95: М | J95: 1 | K95: 0 | L95: 2024-07-09 | M95: =$C95 -> Пояс | N95: 2027-07-09 | O95: 0 | P95: 0 | R95: 0 | S95: 0 | T95: 1 | U95: Рабочий
A96: 173 | B96: Ж | C96: Фартук | D96: 6 | E96: 12 | F96: Бабикова Аделя Альбертовна | G96: ПСЛ | H96: Контролер ЛП | J96: 0 | K96: 1 | L96: 2023-10-12 | M96: =$C96 -> Фартук | N96: 2024-10-12 | O96: 0 | P96: =O96-J96 -> 0 | R96: 1 | S96: 0 | T96: 0 | U96: Рабочий
A97: 175 | B97: Ж | C97: Костюм или халат | D97: 12 | E97: 24 | F97: Бабикова Аделя Альбертовна | G97: ПСЛ | H97: Контролер ЛП | I97: 104-108/158-164 | J97: 1 | K97: 0 | L97: 20.01.2023 15:43:11 | M97: Халат ЖЕН. | N97: 2025-01-20 | O97: 0 | P97: 0 | R97: 0 | S97: 1 | T97: 0 | U97: Рабочий
A98: 176 | B98: Ж | C98: Жилет утеп. | D98: 24 | E98: 24 | F98: Багимова Вера Анатольевна | G98: УВК | H98: Контролер ЛП | J98: 0 | K98: 1 | M98: =$C98 -> Жилет утеп. | N98: 1901-12-31 | O98: 0 | P98: 1 | R98: 1 | S98: 0 | T98: 0 | U98: Рабочий
A99: 179 | B99: Ж | C99: Куртка утеп., ЖЕН. | D99: 24 | E99: 24 | F99: Багимова Вера Анатольевна | G99: УВК | H99: Контролер ЛП | J99: 0 | K99: 1 | M99: Куртка утеп., ЖЕН. | N99: 1901-12-31 | O99: 0 | P99: 1 | R99: 1 | S99: 0 | T99: 0 | U99: Рабочий
A100: 181 | B100: Ж | C100: Плащ | D100: 24 | E100: 24 | F100: Багимова Вера Анатольевна | G100: УВК | H100: Контролер ЛП | J100: 0 | K100: 1 | M100: Плащ | N100: 1901-12-31 | O100: 0 | P100: 1 | R100: 1 | S100: 0 | T100: 0 | U100: Рабочий
A101: 183 | B101: Ж | C101: Ботинки | D101: 12 | E101: 12 | F101: Багимова Вера Анатольевна | G101: УВК | H101: Контролер ЛП | I101: 39 | J101: 0 | K101: 1 | M101: Полуботинки | N101: 1900-12-31 | O101: 0 | P101: 1 | R101: 1 | S101: 0 | T101: 0 | U101: Рабочий
A102: 184 | B102: Ж | C102: Пояс | D102: 36 | E102: 36 | F102: Багимова Вера Анатольевна | G102: УВК | H102: Контролер ЛП | I102: ML | J102: 1 | K102: 0 | L102: 2024-07-01 | M102: =$C102 -> Пояс | N102: 2027-07-01 | O102: 0 | P102: 0 | R102: 0 | S102: 0 | T102: 1 | U102: Рабочий
A103: 185 | B103: Ж | C103: Сапоги ПВХ | D103: 30 | E103: 30 | F103: Багимова Вера Анатольевна | G103: УВК | H103: Контролер ЛП | I103: 39 | J103: 0 | K103: 1 | M103: =$C103 -> Сапоги ПВХ | N103: 1902-06-30 | O103: 0 | P103: 1 | R103: 1 | S103: 0 | T103: 0 | U103: Рабочий
A104: 186 | B104: Ж | C104: Валенки или сапоги утепленные | D104: 30 | E104: 30 | F104: Багимова Вера Анатольевна | G104: УВК | H104: Контролер ЛП | I104: 39 | J104: 0 | K104: 1 | M104: Сапоги утепленные | N104: 1902-06-30 | O104: 0 | P104: 1 | R104: 1 | S104: 0 | T104: 0 | U104: Рабочий
A105: 187 | B105: Ж | C105: Фартук | D105: 6 | E105: 6 | F105: Багимова Вера Анатольевна | G105: УВК | H105: Контролер ЛП | J105: 1 | K105: 0 | L105: 2024-09-19 | M105: =$C105 -> Фартук | N105: 2025-03-19 | O105: 0 | P105: =O105-J105 -> -1 | R105: 0 | S105: 1 | T105: 0 | U105: Рабочий
A106: 189 | B106: Ж | C106: Костюм или халат | D106: 12 | E106: 12 | F106: Багимова Вера Анатольевна | G106: УВК | H106: Контролер ЛП | J106: 0 | K106: 1 | M106: Халат ЖЕН. | N106: 1900-12-31 | O106: 0 | P106: 1 | R106: 1 | S106: 0 | T106: 0 | U106: Рабочий
A107: 191 | B107: Ж | C107: Жилет утеп. | D107: 24 | E107: 24 | F107: Баженова Эльвера Рафаиловна | G107: УВК | H107: Мастер | I107: 120-124/158-164 | J107: 1 | K107: 0 | L107: 2024-03-25 | M107: =$C107 -> Жилет утеп. | N107: 2026-03-25 | O107: 0 | P107: 0 | R107: 0 | S107: 0 | T107: 1 | U107: ИТР
A108: 193 | B108: Ж | C108: Костюм | D108: 12 | E108: 12 | F108: Баженова Эльвера Рафаиловна | G108: УВК | H108: Мастер | I108: 112-116/182-188 | J108: =IF(N108<$X$2,0,1) -> 1 | K108: =IF(N108<$X$2,1,0) -> 0 | L108: 2024-11-11 | M108: Костюм | N108: =DATE(YEAR($L108),MONTH($L108)+$E108,DAY($L108)) -> 2025-11-11 | O108: 0 | P108: =K108+O108 -> 0 | R108: =IF($N108<$R$1,1,0) -> 0 | S108: =IF(AND($N108>=$R$1,$N108<=$T$1),1,0) -> 1 | T108: =IF($N108>$T$1,1,0) -> 0 | U108: ИТР
A109: 195 | B109: Ж | C109: Куртка утеп., ЖЕН. | D109: 24 | E109: 24 | F109: Баженова Эльвера Рафаиловна | G109: УВК | H109: Мастер | I109: 120-124/170-176 | J109: 1 | K109: 0 | L109: 2024-11-11 | M109: Куртка утеп., ЖЕН. | N109: 2026-11-11 | O109: 0 | P109: 0 | R109: 0 | S109: 0 | T109: 1 | U109: ИТР
A110: 198 | B110: Ж | C110: Ботинки или полуботинки | D110: 12 | E110: 12 | F110: Баженова Эльвера Рафаиловна | G110: УВК | H110: Мастер | I110: 43 | J110: 1 | K110: 0 | L110: 2024-03-25 | M110: Полуботинки | N110: 2025-03-25 | O110: 0 | P110: 0 | R110: 0 | S110: 1 | T110: 0 | U110: ИТР
A111: 199 | B111: Ж | C111: Ботинки или полуботинки | D111: 12 | E111: 12 | F111: Баженова Эльвера Рафаиловна | G111: УВК | H111: Мастер | I111: 43 | J111: 1 | K111: 0 | L111: 2024-03-25 | M111: Полуботинки | N111: 2025-03-25 | O111: 0 | P111: 0 | R111: 0 | S111: 1 | T111: 0 | U111: ИТР
A112: 200 | B112: Ж | C112: Пояс | D112: 36 | E112: 36 | F112: Баженова Эльвера Рафаиловна | G112: УВК | H112: Мастер | I112: XL | J112: 1 | K112: 0 | L112: 2024-07-01 | M112: =$C112 -> Пояс | N112: 2027-07-01 | O112: 0 | P112: 0 | R112: 0 | S112: 0 | T112: 1 | U112: ИТР
A113: 202 | B113: Ж | C113: Жилет утеп. | D113: 24 | E113: 24 | F113: Баязитова Нина Федоровна | G113: ПЧЛ | H113: Контролер ЛП | J113: 0 | K113: 1 | M113: Жилет утеп. | N113: 1901-12-31 | O113: 0 | P113: 1 | R113: 1 | S113: 0 | T113: 0 | U113: Рабочий
A114: 205 | B114: Ж | C114: Куртка утеп., ЖЕН. | D114: 24 | E114: 24 | F114: Баязитова Нина Федоровна | G114: ПЧЛ | H114: Контролер ЛП | J114: 0 | K114: 1 | M114: Куртка утеп., ЖЕН. | N114: 1901-12-31 | O114: 0 | P114: 1 | R114: 1 | S114: 0 | T114: 0 | U114: Рабочий
A115: 208 | B115: Ж | C115: Ботинки | D115: 12 | E115: 12 | F115: Баязитова Нина Федоровна | G115: ПЧЛ | H115: Контролер ЛП | I115: 39 | J115: 0 | K115: 1 | M115: Полуботинки | N115: 1900-12-31 | O115: 0 | P115: 1 | R115: 1 | S115: 0 | T115: 0 | U115: Рабочий
A116: 209 | B116: Ж | C116: Пояс | D116: 36 | E116: 36 | F116: Баязитова Нина Федоровна | G116: ПЧЛ | H116: Контролер ЛП | I116: ML | J116: 1 | K116: 0 | L116: 2024-07-01 | M116: =$C116 -> Пояс | N116: 2027-07-01 | O116: 0 | P116: 0 | R116: 0 | S116: 0 | T116: 1 | U116: Рабочий
A117: 210 | B117: Ж | C117: Фартук | D117: 6 | E117: 12 | F117: Баязитова Нина Федоровна | G117: ПЧЛ | H117: Контролер ЛП | J117: 0 | K117: 1 | M117: =$C117 -> Фартук | N117: 1900-12-31 | O117: 0 | P117: =O117-J117 -> 0 | R117: 1 | S117: 0 | T117: 0 | U117: Рабочий
A118: 212 | B118: Ж | C118: Костюм или халат | D118: 12 | E118: 12 | F118: Баязитова Нина Федоровна | G118: ПЧЛ | H118: Контролер ЛП | J118: 1 | K118: 0 | L118: 14.12.2023 10:09:44 | M118: Халат ЖЕН. | N118: 2024-12-14 | O118: 0 | P118: 0 | R118: 0 | S118: 1 | T118: 0 | U118: Рабочий
A119: 214 | B119: Ж | C119: Жилет утеп. | D119: 24 | E119: 24 | F119: Белова Татьяна Васильевна | G119: ПЦЛ | H119: Нач. БТК ПЦЛ | I119: 88-92/158-164 | J119: 1 | K119: 0 | L119: 2023-11-07 | M119: =$C119 -> Жилет утеп. | N119: 2025-11-07 | O119: 0 | P119: 0 | R119: 0 | S119: 1 | T119: 0 | U119: ИТР
A120: 216 | B120: Ж | C120: Куртка утеп., ЖЕН. | D120: 24 | E120: 24 | F120: Белова Татьяна Васильевна | G120: ПЦЛ | H120: Нач. БТК ПЦЛ | I120: 96-100/170-176 | J120: 1 | K120: 0 | L120: 2023-04-05 | M120: Куртка утеп., ЖЕН. | N120: 2025-04-05 | O120: 0 | P120: 0 | R120: 0 | S120: 1 | T120: 0 | U120: ИТР
A121: 219 | B121: Ж | C121: Ботинки или полуботинки | D121: 12 | E121: 12 | F121: Белова Татьяна Васильевна | G121: ПЦЛ | H121: Нач. БТК ПЦЛ | I121: 35 | J121: 1 | K121: 0 | L121: 2024-09-10 | M121: Полуботинки | N121: 2025-09-10 | O121: 0 | P121: 0 | R121: 0 | S121: 1 | T121: 0 | U121: ИТР
A122: 220 | B122: Ж | C122: Пояс | D122: 36 | E122: 36 | F122: Белова Татьяна Васильевна | G122: ПЦЛ | H122: Нач. БТК ПЦЛ | I122: ML | J122: 1 | K122: 0 | L122: 2024-07-01 | M122: =$C122 -> Пояс | N122: 2027-07-01 | O122: 0 | P122: 0 | R122: 0 | S122: 0 | T122: 1 | U122: ИТР
A123: 223 | B123: Ж | C123: Халат или куртка летняя | D123: 12 | E123: 12 | F123: Белова Татьяна Васильевна | G123: ПЦЛ | H123: Нач. БТК ПЦЛ | I123: 96-100/170-176 | J123: 1 | K123: 0 | L123: 2024-11-07 | M123: Халат ЖЕН. | N123: 2025-11-07 | O123: 0 | P123: 0 | R123: 0 | S123: 1 | T123: 0 | U123: ИТР
A124: 227 | B124: М | C124: Куртка утеп., МУЖ. | D124: 24 | E124: 24 | F124: Бессонов Виктор Павлович | G124: ОТК | H124: Нач. ОТК | J124: 0 | K124: 1 | M124: =$C124 -> Куртка утеп., МУЖ. | N124: 1901-12-31 | O124: 0 | P124: 1 | R124: 1 | S124: 0 | T124: 0 | U124: ИТР
A125: 230 | B125: М | C125: Полуботинки | D125: 12 | F125: Бессонов Виктор Павлович | G125: ОТК | H125: Нач. ОТК | J125: 0 | K125: 1 | M125: Полуботинки | N125: 00:00:00 | O125: 0 | P125: 1 | R125: 1 | S125: 0 | T125: 0 | U125: ИТР
A126: 233 | B126: Ж | C126: Жилет утеп. | D126: 24 | E126: 24 | F126: Бешнева Валентина Юрьевна | G126: ПЧЛ | H126: Контролер ЛП | J126: 0 | K126: 1 | M126: =$C126 -> Жилет утеп. | N126: 1901-12-31 | O126: 0 | P126: 1 | R126: 1 | S126: 0 | T126: 0 | U126: Рабочий
A127: 236 | B127: Ж | C127: Куртка утеп., ЖЕН. | D127: 24 | E127: 24 | F127: Бешнева Валентина Юрьевна | G127: ПЧЛ | H127: Контролер ЛП | J127: 0 | K127: 1 | M127: Куртка утеп., ЖЕН. | N127: 1901-12-31 | O127: 0 | P127: 1 | R127: 1 | S127: 0 | T127: 0 | U127: Рабочий
A128: 238 | B128: Ж | C128: Ботинки | D128: 12 | E128: 12 | F128: Бешнева Валентина Юрьевна | G128: ПЧЛ | H128: Контролер ЛП | J128: 0 | K128: 1 | M128: Полуботинки | N128: 1900-12-31 | O128: 0 | P128: 1 | R128: 1 | S128: 0 | T128: 0 | U128: Рабочий
A129: 240 | B129: Ж | C129: Пояс | D129: 36 | E129: 36 | F129: Бешнева Валентина Юрьевна | G129: ПЧЛ | H129: Контролер ЛП | I129: ML | J129: 1 | K129: 0 | L129: 2024-07-01 | M129: =$C129 -> Пояс | N129: 2027-07-01 | O129: 0 | P129: 0 | R129: 0 | S129: 0 | T129: 1 | U129: Рабочий
A130: 241 | B130: Ж | C130: Фартук | D130: 6 | E130: 6 | F130: Бешнева Валентина Юрьевна | G130: ПЧЛ | H130: Контролер ЛП | J130: 1 | K130: 0 | L130: 2024-09-19 | M130: =$C130 -> Фартук | N130: 2025-03-19 | O130: 0 | P130: =O130-J130 -> -1 | R130: 0 | S130: 1 | T130: 0 | U130: Рабочий
A131: 243 | B131: Ж | C131: Костюм или халат | D131: 12 | E131: 12 | F131: Бешнева Валентина Юрьевна | G131: ПЧЛ | H131: Контролер ЛП | J131: 0 | K131: 1 | M131: Халат ЖЕН. | N131: 1900-12-31 | O131: 0 | P131: 1 | R131: 1 | S131: 0 | T131: 0 | U131: Рабочий
A132: 245 | B132: Ж | C132: Жилет утеп. | D132: 24 | E132: 24 | F132: Богачкина Лилия Муллануровна | G132: СВЛ | H132: Разметчик | J132: 0 | K132: 1 | M132: =$C132 -> Жилет утеп. | N132: 1901-12-31 | O132: 0 | P132: 1 | R132: 1 | S132: 0 | T132: 0 | U132: Рабочий
A133: 248 | B133: Ж | C133: Куртка утеп., ЖЕН. | D133: 24 | E133: 24 | F133: Богачкина Лилия Муллануровна | G133: СВЛ | H133: Разметчик | J133: 0 | K133: 1 | M133: =$C133 -> Куртка утеп., ЖЕН. | N133: 1901-12-31 | O133: 0 | P133: 1 | R133: 1 | S133: 0 | T133: 0 | U133: Рабочий
A134: 249 | B134: Ж | C134: Налокотник | D134: 12 | E134: 12 | F134: Богачкина Лилия Муллануровна | G134: СВЛ | H134: Разметчик | J134: 0 | K134: 1 | M134: Налокотник | N134: 1900-12-31 | O134: 0 | P134: 1 | R134: 1 | S134: 0 | T134: 0 | U134: Рабочий
A135: 252 | B135: Ж | C135: Ботинки или полуботинки | D135: 12 | E135: 12 | F135: Богачкина Лилия Муллануровна | G135: СВЛ | H135: Разметчик | I135: 39 | J135: 1 | K135: 0 | L135: 2023-12-15 | M135: Полуботинки | N135: 2024-12-15 | O135: 0 | P135: 0 | R135: 0 | S135: 1 | T135: 0 | U135: Рабочий
A136: 253 | B136: Ж | C136: Пояс | D136: 36 | E136: 36 | F136: Богачкина Лилия Муллануровна | G136: СВЛ | H136: Разметчик | I136: XL | J136: 1 | K136: 0 | L136: 2024-07-01 | M136: =$C136 -> Пояс | N136: 2027-07-01 | O136: 0 | P136: 0 | R136: 0 | S136: 0 | T136: 1 | U136: Рабочий
A137: 241 | B137: Ж | C137: Фартук | D137: 6 | E137: 6 | F137: Богачкина Лилия Муллануровна | G137: СВЛ | H137: Разметчик | J137: 0 | K137: 1 | L137: 2023-10-09 | M137: =$C137 -> Фартук | N137: 2024-04-09 | O137: 0 | P137: =O137-J137 -> 0 | R137: 1 | S137: 0 | T137: 0 | U137: Рабочий
A138: 255 | B138: Ж | C138: Халат или куртка летняя | D138: 12 | E138: 12 | F138: Богачкина Лилия Муллануровна | G138: СВЛ | H138: Разметчик | J138: 1 | K138: 0 | L138: 2023-12-20 | M138: Халат ЖЕН. | N138: 2024-12-20 | O138: 0 | P138: 0 | R138: 0 | S138: 1 | T138: 0 | U138: Рабочий
A139: 257 | B139: М | C139: Жилет утеп. | D139: 24 | E139: 24 | F139: Борзенков Денис Владимирович | G139: ПЧЛ | H139: Разметчик | J139: =IF(N139<$X$2,0,1) -> 0 | K139: =IF(N139<$X$2,1,0) -> 1 | M139: =$C139 -> Жилет утеп. | N139: =DATE(YEAR($L139),MONTH($L139)+$E139,DAY($L139)) -> 1901-12-31 | O139: 0 | P139: =K139+O139 -> 1 | R139: =IF($N139<$R$1,1,0) -> 1 | S139: =IF(AND($N139>=$R$1,$N139<=$T$1),1,0) -> 0 | T139: =IF($N139>$T$1,1,0) -> 0 | U139: Рабочий
A140: 259 | B140: М | C140: Куртка утеп., МУЖ. | D140: 24 | E140: 24 | F140: Борзенков Денис Владимирович | G140: ПЧЛ | H140: Разметчик | J140: 0 | K140: 1 | M140: =$C140 -> Куртка утеп., МУЖ. | N140: 1901-12-31 | O140: 0 | P140: 1 | R140: 1 | S140: 0 | T140: 0 | U140: Рабочий
A141: 260 | B141: М | C141: Налокотник | D141: 12 | E141: 12 | F141: Борзенков Денис Владимирович | G141: ПЧЛ | H141: Разметчик | J141: 0 | K141: 1 | M141: Налокотник | N141: 1900-12-31 | O141: 0 | P141: 1 | R141: 1 | S141: 0 | T141: 0 | U141: Рабочий
A142: 263 | B142: М | C142: Ботинки или полуботинки | D142: 12 | E142: 12 | F142: Борзенков Денис Владимирович | G142: ПЧЛ | H142: Разметчик | I142: 41 | J142: 1 | K142: 0 | L142: 2023-12-14 | M142: Полуботинки | N142: 2024-12-14 | O142: 0 | P142: 0 | R142: 0 | S142: 1 | T142: 0 | U142: Рабочий
A143: 264 | B143: М | C143: Пояс | D143: 36 | E143: 36 | F143: Борзенков Денис Владимирович | G143: ПЧЛ | H143: Разметчик | I143: ML | J143: 1 | K143: 0 | L143: 2024-07-01 | M143: =$C143 -> Пояс | N143: 2027-07-01 | O143: 0 | P143: 0 | R143: 0 | S143: 0 | T143: 1 | U143: Рабочий
A144: 266 | B144: М | C144: Костюм или халат | D144: 12 | E144: 12 | F144: Борзенков Денис Владимирович | G144: ПЧЛ | H144: Разметчик | J144: 0 | K144: 1 | M144: Халат МУЖ. | N144: 1900-12-31 | O144: 0 | P144: 1 | R144: 1 | S144: 0 | T144: 0 | U144: Рабочий
A145: 268 | B145: Ж | C145: Ботинки или полуботинки | D145: 12 | E145: 12 | F145: Борзенкова Елена Анатольевна | G145: ПЧЛ | H145: Мастер | I145: 39 | J145: 1 | K145: 0 | L145: 2024-08-28 | M145: Ботинки | N145: 2025-08-28 | O145: 0 | P145: 0 | R145: 0 | S145: 1 | T145: 0 | U145: ИТР
A146: 269 | B146: Ж | C146: Жилет утеп. | D146: 24 | E146: 24 | F146: Борзенкова Елена Анатольевна | G146: ПЧЛ | H146: Мастер | J146: 0 | K146: 1 | M146: =$C146 -> Жилет утеп. | N146: 1901-12-31 | O146: 0 | P146: 1 | R146: 1 | S146: 0 | T146: 0 | U146: ИТР
A147: 271 | B147: Ж | C147: Костюм | D147: 12 | E147: 12 | F147: Борзенкова Елена Анатольевна | G147: ПЧЛ | H147: Мастер | J147: 1 | K147: 0 | L147: 2024-08-20 | M147: Костюм | N147: 2025-08-20 | O147: 0 | P147: 0 | R147: 0 | S147: 1 | T147: 0 | U147: ИТР
A148: 273 | B148: Ж | C148: Куртка утеп., ЖЕН. | D148: 24 | E148: 24 | F148: Борзенкова Елена Анатольевна | G148: ПЧЛ | H148: Мастер | J148: 0 | K148: 1 | M148: Куртка утеп., ЖЕН. | N148: 1901-12-31 | O148: 0 | P148: 1 | R148: 1 | S148: 0 | T148: 0 | U148: ИТР
A149: 276 | B149: Ж | C149: Пояс | D149: 36 | E149: 36 | F149: Борзенкова Елена Анатольевна | G149: ПЧЛ | H149: Мастер | I149: ML | J149: 1 | K149: 0 | L149: 2024-07-01 | M149: Пояс | N149: 2027-07-01 | O149: 0 | P149: 0 | R149: 0 | S149: 0 | T149: 1 | U149: ИТР
A150: 277 | B150: Ж | C150: Ботинки или полуботинки | D150: 12 | E150: 12 | F150: Борзенкова Елена Анатольевна | G150: ПЧЛ | H150: Мастер | I150: 40 | J150: 1 | K150: 0 | L150: 2024-08-20 | M150: сандалии | N150: 2025-08-20 | O150: 0 | P150: 0 | R150: 0 | S150: 1 | T150: 0 | U150: ИТР
A151: 280 | B151: М | C151: Жилет утеп. | D151: 24 | E151: 24 | F151: Бочериков Александр Александрович | G151: ПЧЛ | H151: Разметчик | J151: 0 | K151: 1 | M151: =$C151 -> Жилет утеп. | N151: 1901-12-31 | O151: 0 | P151: 1 | R151: 1 | S151: 0 | T151: 0 | U151: Рабочий
A152: 282 | B152: М | C152: Куртка утеп., МУЖ. | D152: 24 | E152: 24 | F152: Бочериков Александр Александрович | G152: ПЧЛ | H152: Разметчик | J152: 0 | K152: 1 | M152: =$C152 -> Куртка утеп., МУЖ. | N152: 1901-12-31 | O152: 0 | P152: 1 | R152: 1 | S152: 0 | T152: 0 | U152: Рабочий
A153: 283 | B153: М | C153: Налокотник | D153: 12 | E153: 12 | F153: Бочериков Александр Александрович | G153: ПЧЛ | H153: Разметчик | J153: 0 | K153: 1 | M153: Налокотник | N153: 1900-12-31 | O153: 0 | P153: 1 | R153: 1 | S153: 0 | T153: 0 | U153: Рабочий
A154: 286 | B154: М | C154: Ботинки или полуботинки | D154: 12 | E154: 12 | F154: Бочериков Александр Александрович | G154: ПЧЛ | H154: Разметчик | I154: 43 | J154: 0 | K154: 1 | M154: Полуботинки | N154: 1900-12-31 | O154: 0 | P154: 1 | R154: 1 | S154: 0 | T154: 0 | U154: Рабочий
A155: 287 | B155: М | C155: Пояс | D155: 36 | E155: 36 | F155: Бочериков Александр Александрович | G155: ПЧЛ | H155: Разметчик | I155: М | J155: 1 | K155: 0 | L155: 2024-07-09 | M155: =$C155 -> Пояс | N155: 2027-07-09 | O155: 0 | P155: 0 | R155: 0 | S155: 0 | T155: 1 | U155: Рабочий
A156: 289 | B156: М | C156: Костюм или халат | D156: 12 | E156: 24 | F156: Бочериков Александр Александрович | G156: ПЧЛ | H156: Разметчик | I156: 96-100/182-188 | J156: 1 | K156: 0 | L156: 2024-10-22 | M156: Халат МУЖ. | N156: 2026-10-22 | O156: 0 | P156: 0 | R156: 0 | S156: 0 | T156: 1 | U156: Рабочий
A157: 291 | B157: М | C157: Жилет утеп. | D157: 24 | E157: 24 | F157: Брюханов Алексей Александрович | G157: ПЛО | H157: Разметчик | J157: 0 | K157: 1 | M157: =$C157 -> Жилет утеп. | N157: 1901-12-31 | O157: 0 | P157: 1 | R157: 1 | S157: 0 | T157: 0 | U157: Рабочий
A158: 293 | B158: М | C158: Костюм или халат | D158: 12 | E158: 12 | F158: Брюханов Алексей Александрович | G158: ПЛО | H158: Разметчик | I158: 104-108/182-188 | J158: 1 | K158: 0 | L158: 2024-09-04 | M158: Костюм | N158: 2025-09-04 | O158: 0 | P158: 0 | R158: 0 | S158: 1 | T158: 0 | U158: Рабочий
A159: 294 | B159: М | C159: Куртка утеп., МУЖ. | D159: 24 | E159: 24 | F159: Брюханов Алексей Александрович | G159: ПЛО | H159: Разметчик | I159: 96-100/170-176 | J159: 1 | K159: 0 | L159: 2023-01-20 | M159: =$C159 -> Куртка утеп., МУЖ. | N159: 2025-01-20 | O159: 0 | P159: 0 | R159: 0 | S159: 1 | T159: 0 | U159: Рабочий
A160: 295 | B160: М | C160: Налокотник | D160: 12 | E160: 12 | F160: Брюханов Алексей Александрович | G160: ПЛО | H160: Разметчик | J160: 0 | K160: 1 | M160: Налокотник | N160: 1900-12-31 | O160: 0 | P160: 1 | R160: 1 | S160: 0 | T160: 0 | U160: Рабочий
A161: 298 | B161: М | C161: Ботинки или полуботинки | D161: 12 | E161: 12 | F161: Брюханов Алексей Александрович | G161: ПЛО | H161: Разметчик | I161: 42 | J161: 0 | K161: 1 | M161: Полуботинки | N161: 1900-12-31 | O161: 0 | P161: 1 | R161: 1 | S161: 0 | T161: 0 | U161: Рабочий
A162: 299 | B162: М | C162: Пояс | D162: 36 | E162: 36 | F162: Брюханов Алексей Александрович | G162: ПЛО | H162: Разметчик | I162: ML | J162: 1 | K162: 0 | L162: 2024-07-01 | M162: =$C162 -> Пояс | N162: 2027-07-01 | O162: 0 | P162: 0 | R162: 0 | S162: 0 | T162: 1 | U162: Рабочий
A163: 302 | B163: М | C163: Жилет утеп. | D163: 24 | E163: 24 | F163: Бураков Николай Александрович | G163: ПЛО | H163: Разметчик | J163: 0 | K163: 1 | M163: Жилет утеп. | N163: 1901-12-31 | O163: 0 | P163: 1 | R163: 1 | S163: 0 | T163: 0 | U163: Рабочий
A164: 304 | B164: М | C164: Куртка утеп., МУЖ. | D164: 24 | E164: 24 | F164: Бураков Николай Александрович | G164: ПЛО | H164: Разметчик | J164: 0 | K164: 1 | M164: Куртка утеп., МУЖ. | N164: 1901-12-31 | O164: 0 | P164: 1 | R164: 1 | S164: 0 | T164: 0 | U164: Рабочий
A165: 305 | B165: М | C165: Налокотник | D165: 12 | E165: 12 | F165: Бураков Николай Александрович | G165: ПЛО | H165: Разметчик | J165: 0 | K165: 1 | M165: Налокотник | N165: 1900-12-31 | O165: 0 | P165: 1 | R165: 1 | S165: 0 | T165: 0 | U165: Рабочий
A166: 308 | B166: М | C166: Ботинки или полуботинки | D166: 12 | E166: 12 | F166: Бураков Николай Александрович | G166: ПЛО | H166: Разметчик | I166: 43 | J166: 0 | K166: 1 | M166: Полуботинки | N166: 1900-12-31 | O166: 0 | P166: 1 | R166: 1 | S166: 0 | T166: 0 | U166: Рабочий
A167: 309 | B167: М | C167: Пояс | D167: 36 | E167: 36 | F167: Бураков Николай Александрович | G167: ПЛО | H167: Разметчик | I167: XL | J167: 1 | K167: 0 | L167: 2024-07-01 | M167: =$C167 -> Пояс | N167: 2027-07-01 | O167: 0 | P167: 0 | R167: 0 | S167: 0 | T167: 1 | U167: Рабочий
A168: 311 | B168: М | C168: Костюм или халат | D168: 12 | E168: 12 | F168: Бураков Николай Александрович | G168: ПЛО | H168: Разметчик | J168: 0 | K168: 1 | M168: Халат МУЖ. | N168: 1900-12-31 | O168: 0 | P168: 1 | R168: 1 | S168: 0 | T168: 0 | U168: Рабочий
A169: 312 | B169: Ж | C169: Жилет утеп. | D169: 24 | E169: 24 | F169: Бурашникова Елена Викторовна | G169: ПЧЛ | H169: Контролер ЛП | J169: 0 | K169: 1 | M169: =$C169 -> Жилет утеп. | N169: 1901-12-31 | O169: 0 | P169: 1 | R169: 1 | S169: 0 | T169: 0 | U169: Рабочий
A170: 315 | B170: Ж | C170: Куртка утеп., ЖЕН. | D170: 24 | E170: 24 | F170: Бурашникова Елена Викторовна | G170: ПЧЛ | H170: Контролер ЛП | J170: 0 | K170: 1 | M170: Куртка утеп., ЖЕН. | N170: 1901-12-31 | O170: 0 | P170: 1 | R170: 1 | S170: 0 | T170: 0 | U170: Рабочий
A171: 318 | B171: Ж | C171: Ботинки | D171: 12 | E171: 12 | F171: Бурашникова Елена Викторовна | G171: ПЧЛ | H171: Контролер ЛП | I171: 37 | J171: 0 | K171: 1 | L171: 2023-10-25 | M171: Полуботинки | N171: 2024-10-25 | O171: 0 | P171: 1 | R171: 1 | S171: 0 | T171: 0 | U171: Рабочий
A172: 319 | B172: Ж | C172: Пояс | D172: 36 | E172: 36 | F172: Бурашникова Елена Викторовна | G172: ПЧЛ | H172: Контролер ЛП | I172: XL | J172: 1 | K172: 0 | L172: 2024-07-01 | M172: =$C172 -> Пояс | N172: 2027-07-01 | O172: 0 | P172: 0 | R172: 0 | S172: 0 | T172: 1 | U172: Рабочий
A173: 320 | B173: Ж | C173: Фартук | D173: 6 | E173: 12 | F173: Бурашникова Елена Викторовна | G173: ПЧЛ | H173: Контролер ЛП | J173: =IF(N173<$X$2,0,1) -> 0 | K173: =IF(N173<$X$2,1,0) -> 1 | M173: =$C173 -> Фартук | N173: =DATE(YEAR($L173),MONTH($L173)+$E173,DAY($L173)) -> 1900-12-31 | O173: 0 | P173: =O173-J173 -> 0 | R173: =IF($N173<$R$1,1,0) -> 1 | S173: =IF(AND($N173>=$R$1,$N173<=$T$1),1,0) -> 0 | T173: =IF($N173>$T$1,1,0) -> 0 | U173: Рабочий
A174: 322 | B174: Ж | C174: Костюм или халат | D174: 12 | E174: 12 | F174: Бурашникова Елена Викторовна | G174: ПЧЛ | H174: Контролер ЛП | J174: 1 | K174: 0 | L174: 07.05.2024 15:27:05 | M174: Халат ЖЕН. | N174: 2025-05-07 | O174: 0 | P174: =K174+O174 -> 0 | R174: 0 | S174: 1 | T174: 0 | U174: Рабочий
A175: 323 | B175: Ж | C175: Жилет утеп. | D175: 24 | E175: 24 | F175: Быстрова Розалия Ниязовна | G175: УВК | H175: Контролер ЛП | I175: 96-100/170-176 | J175: 1 | K175: 0 | L175: 2024-11-13 | M175: =$C175 -> Жилет утеп. | N175: 2026-11-13 | O175: 0 | P175: 0 | R175: 0 | S175: 0 | T175: 1 | U175: Рабочий
A176: 325 | B176: Ж | C176: Костюм или халат | D176: 12 | E176: 12 | F176: Быстрова Розалия Ниязовна | G176: УВК | H176: Контролер ЛП | I176: 96-100/170-176 | J176: 1 | K176: 0 | L176: 2024-10-09 | M176: Костюм | N176: 2025-10-09 | O176: 0 | P176: 0 | R176: 0 | S176: 1 | T176: 0 | U176: Рабочий
A177: 327 | B177: Ж | C177: Куртка утеп., ЖЕН. | D177: 24 | E177: 24 | F177: Быстрова Розалия Ниязовна | G177: УВК | H177: Контролер ЛП | I177: 80-84/170-176 | J177: 1 | K177: 0 | L177: 2023-11-10 | M177: =$C177 -> Куртка утеп., ЖЕН. | N177: 2025-11-10 | O177: 0 | P177: 0 | R177: 0 | S177: 1 | T177: 0 | U177: Рабочий
A178: 329 | B178: Ж | C178: Плащ | D178: 24 | E178: 24 | F178: Быстрова Розалия Ниязовна | G178: УВК | H178: Контролер ЛП | J178: 0 | K178: 1 | M178: =$C178 -> Плащ | N178: 1901-12-31 | O178: 0 | P178: 1 | R178: 1 | S178: 0 | T178: 0 | U178: Рабочий
A179: 331 | B179: Ж | C179: Ботинки | D179: 12 | E179: 12 | F179: Быстрова Розалия Ниязовна | G179: УВК | H179: Контролер ЛП | I179: 36 | J179: 1 | K179: 0 | L179: 2024-10-09 | M179: Полуботинки | N179: 2025-10-09 | O179: 0 | P179: 0 | R179: 0 | S179: 1 | T179: 0 | U179: Рабочий
A180: 332 | B180: Ж | C180: Пояс | D180: 36 | E180: 36 | F180: Быстрова Розалия Ниязовна | G180: УВК | H180: Контролер ЛП | I180: ML | J180: 1 | K180: 0 | L180: 2024-07-01 | M180: =$C180 -> Пояс | N180: 2027-07-01 | O180: 0 | P180: 0 | R180: 0 | S180: 0 | T180: 1 | U180: Рабочий
A181: 333 | B181: Ж | C181: Сапоги ПВХ | D181: 30 | E181: 30 | F181: Быстрова Розалия Ниязовна | G181: УВК | H181: Контролер ЛП | I181: 36 | J181: 0 | K181: 1 | M181: =$C181 -> Сапоги ПВХ | N181: 1902-06-30 | O181: 0 | P181: 1 | R181: 1 | S181: 0 | T181: 0 | U181: Рабочий
A182: 334 | B182: Ж | C182: Валенки или сапоги утепленные | D182: 30 | E182: 30 | F182: Быстрова Розалия Ниязовна | G182: УВК | H182: Контролер ЛП | I182: 36 | J182: 0 | K182: 1 | M182: Сапоги утепленные | N182: 1902-06-30 | O182: 0 | P182: 1 | R182: 1 | S182: 0 | T182: 0 | U182: Рабочий
A183: 335 | B183: Ж | C183: Фартук | D183: 6 | E183: 12 | F183: Быстрова Розалия Ниязовна | G183: УВК | H183: Контролер ЛП | J183: 0 | K183: 1 | M183: =$C183 -> Фартук | N183: 1900-12-31 | O183: 0 | P183: =O183-J183 -> 0 | R183: 1 | S183: 0 | T183: 0 | U183: Рабочий
A184: 337 | B184: Ж | C184: Жилет утеп. | D184: 24 | E184: 24 | F184: Валеева Асия Хурматовна | G184: ПЧЛ | H184: Контролер ЛП | I184: 104-108/158-164 | J184: 1 | K184: 0 | L184: 2023-09-15 | M184: Жилет утеп. | N184: 2025-09-15 | O184: 0 | P184: 0 | R184: 0 | S184: 1 | T184: 0 | U184: Рабочий
A185: 340 | B185: Ж | C185: Куртка утеп., ЖЕН. | D185: 24 | E185: 24 | F185: Валеева Асия Хурматовна | G185: ПЧЛ | H185: Контролер ЛП | I185: 104-108/170-176 | J185: 1 | K185: 0 | L185: 2023-09-15 | M185: Куртка утеп., ЖЕН. | N185: 2025-09-15 | O185: 0 | P185: 0 | R185: 0 | S185: 1 | T185: 0 | U185: Рабочий
A186: 343 | B186: Ж | C186: Ботинки | D186: 12 | E186: 12 | F186: Валеева Асия Хурматовна | G186: ПЧЛ | H186: Контролер ЛП | I186: 34 | J186: 1 | K186: 0 | L186: 2024-09-10 | M186: Полуботинки | N186: 2025-09-10 | O186: 0 | P186: 0 | R186: 0 | S186: 1 | T186: 0 | U186: Рабочий
A187: 344 | B187: Ж | C187: Пояс | D187: 36 | E187: 36 | F187: Валеева Асия Хурматовна | G187: ПЧЛ | H187: Контролер ЛП | I187: ML | J187: 1 | K187: 0 | L187: 2024-07-01 | M187: =$C187 -> Пояс | N187: 2027-07-01 | O187: 0 | P187: 0 | R187: 0 | S187: 0 | T187: 1 | U187: Рабочий
A188: 345 | B188: Ж | C188: Фартук | D188: 6 | E188: 12 | F188: Валеева Асия Хурматовна | G188: ПЧЛ | H188: Контролер ЛП | J188: 0 | K188: 1 | M188: =$C188 -> Фартук | N188: 1900-12-31 | O188: 0 | P188: =O188-J188 -> 0 | R188: 1 | S188: 0 | T188: 0 | U188: Рабочий
A189: 347 | B189: Ж | C189: Костюм или халат | D189: 12 | E189: 24 | F189: Валеева Асия Хурматовна | G189: ПЧЛ | H189: Контролер ЛП | I189: 104-108/158-164 | J189: 1 | K189: 0 | L189: 15.09.2023 9:07:22 | M189: Халат ЖЕН. | N189: 2025-09-15 | O189: 0 | P189: 0 | R189: 0 | S189: 1 | T189: 0 | U189: Рабочий
A190: 348 | B190: Ж | C190: Жилет утеп. | D190: 24 | E190: 24 | F190: Валиева Венера Павловна | G190: ПЦЛ | H190: Контролер ЛП | J190: 0 | K190: 1 | M190: =$C190 -> Жилет утеп. | N190: 1901-12-31 | O190: 0 | P190: 1 | R190: 1 | S190: 0 | T190: 0 | U190: Рабочий
A191: 351 | B191: Ж | C191: Куртка утеп., ЖЕН. | D191: 24 | E191: 24 | F191: Валиева Венера Павловна | G191: ПЦЛ | H191: Контролер ЛП | I191: 88-92/170-176 | J191: 1 | K191: 0 | L191: 2023-01-20 | M191: Куртка утеп., ЖЕН. | N191: 2025-01-20 | O191: 0 | P191: 0 | R191: 0 | S191: 1 | T191: 0 | U191: Рабочий
A192: 354 | B192: Ж | C192: Ботинки | D192: 12 | E192: 12 | F192: Валиева Венера Павловна | G192: ПЦЛ | H192: Контролер ЛП | I192: 39 | J192: 1 | K192: 0 | L192: 2024-03-13 | M192: Полуботинки | N192: 2025-03-13 | O192: 0 | P192: 0 | R192: 0 | S192: 1 | T192: 0 | U192: Рабочий
A193: 355 | B193: Ж | C193: Пояс | D193: 36 | E193: 36 | F193: Валиева Венера Павловна | G193: ПЦЛ | H193: Контролер ЛП | I193: М | J193: 1 | K193: 0 | L193: 2024-07-09 | M193: =$C193 -> Пояс | N193: 2027-07-09 | O193: 0 | P193: 0 | R193: 0 | S193: 0 | T193: 1 | U193: Рабочий
A194: 356 | B194: Ж | C194: Фартук | D194: 6 | E194: 12 | F194: Валиева Венера Павловна | G194: ПЦЛ | H194: Контролер ЛП | J194: 1 | K194: 0 | L194: 2023-12-14 | M194: =$C194 -> Фартук | N194: 2024-12-14 | O194: 0 | P194: =O194-J194 -> -1 | R194: 0 | S194: 1 | T194: 0 | U194: Рабочий
A195: 358 | B195: Ж | C195: Костюм или халат | D195: 12 | E195: 12 | F195: Валиева Венера Павловна | G195: ПЦЛ | H195: Контролер ЛП | J195: 1 | K195: 0 | L195: 16.01.2024 9:33:48 | M195: Халат ЖЕН. | N195: 2025-01-16 | O195: 0 | P195: 0 | R195: 0 | S195: 1 | T195: 0 | U195: Рабочий
A196: 359 | B196: Ж | C196: Жилет утеп. | D196: 24 | E196: 24 | F196: Васильева Гульшат Рафаиловна | G196: УВК | H196: Контролер ЛП | I196: 104-108/158-164 | J196: 1 | K196: 0 | L196: 2023-10-20 | M196: =$C196 -> Жилет утеп. | N196: 2025-10-20 | O196: 0 | P196: 0 | R196: 0 | S196: 1 | T196: 0 | U196: Рабочий
A197: 361 | B197: Ж | C197: Костюм или халат | D197: 12 | E197: 12 | F197: Васильева Гульшат Рафаиловна | G197: УВК | H197: Контролер ЛП | I197: 104-108/182-188 | J197: 0 | K197: 1 | L197: 2023-10-20 | M197: Костюм | N197: 2024-10-20 | O197: 0 | P197: 1 | R197: 1 | S197: 0 | T197: 0 | U197: Рабочий
A198: 363 | B198: Ж | C198: Куртка утеп., ЖЕН. | D198: 24 | E198: 24 | F198: Васильева Гульшат Рафаиловна | G198: УВК | H198: Контролер ЛП | I198: 112-116/170-176 | J198: 1 | K198: 0 | L198: 2023-10-20 | M198: =$C198 -> Куртка утеп., ЖЕН. | N198: 2025-10-20 | O198: 0 | P198: 0 | R198: 0 | S198: 1 | T198: 0 | U198: Рабочий
A199: 365 | B199: Ж | C199: Плащ | D199: 24 | E199: 24 | F199: Васильева Гульшат Рафаиловна | G199: УВК | H199: Контролер ЛП | I199: 96-100/170-176 | J199: 1 | K199: 0 | L199: 2023-12-15 | M199: =$C199 -> Плащ | N199: 2025-12-15 | O199: 0 | P199: 0 | R199: 0 | S199: 1 | T199: 0 | U199: Рабочий
A200: 367 | B200: Ж | C200: Ботинки | D200: 12 | E200: 12 | F200: Васильева Гульшат Рафаиловна | G200: УВК | H200: Контролер ЛП | I200: 39 | J200: 0 | K200: 1 | L200: 2023-10-20 | M200: Полуботинки | N200: 2024-10-20 | O200: 0 | P200: 1 | R200: 1 | S200: 0 | T200: 0 | U200: Рабочий
... 1530 more rows

Sheet Лист1 (hidden)
A1: 80-84/158-164
A2: 80-84/170-176
A3: 80-84/182-188
A4: 88-92/158-164
A5: 88-92/170-176
A6: 88-92/182-188
A7: 88-92/190-200
A8: 96-100/158-164
A9: 96-100/170-176
A10: 96-100/182-188
A11: 96-100/190-200
A12: 104-108/158-164
A13: 104-108/170-176
A14: 104-108/182-188
A15: 104-108/190-200
A16: 112-116/158-164
A17: 112-116/170-176
A18: 112-116/182-188
A19: 112-116/190-200
A20: 120-124/158-164
A21: 120-124/170-176
A22: 120-124/182-188
A23: 120-124/190-200
A24: 128-132/158-164
A25: 128-132/170-176
A26: 128-132/182-188
A27: 128-132/190-200
A28: 136-140/158-164
A29: 136-140/170-176
A30: 136-140/182-188
A31: 136-140/190-200
A32: 34
A33: 35
A34: 36
A35: 37
A36: 38
A37: 39
A38: 40
A39: 41
A40: 42
A41: 43
A42: 44
A43: 45
A44: 46
A45: XL
A46: М
A47: ML
A48: S

Sheet Лист2 (hidden)
A2: Ботинки муж МУН-200 | B2: 24 | C2: 23 | D2: 1
A3: Мужской, Размер 39 | B3: 16 | C3: 16
A4: Мужской, Размер 40 | B4: 4 | C4: 3 | D4: 1
A5: Мужской, Размер 41 | B5: 4 | C5: 4
A6: Ботинки муж. Неогард-лайт | B6: 1 | C6: 1
A7: Размер обуви 40 | B7: 1 | C7: 1
A8: Ботинки муж.Юнигард | B8: 1 | C8: 1
A9: Размер обуви 41 | B9: 1 | C9: 1
A10: Ботинки МУН-200 | B10: 9 | C10: 9
A11: Размер 37 | B11: 5 | C11: 5
A12: Размер 38 | B12: 4 | C12: 4
A13: Жилет 6-ЖУ-ДТК-С | B13: 115 | C13: 102 | D13: 13
A14: Размер одежды 88/92 | B14: 20 | C14: 20
A15: Размер одежды 80/84 | B15: 20 | C15: 14 | D15: 6
A16: Размер одежды 104/108 | B16: 26 | C16: 23 | D16: 3
A17: Размер одежды 96/100 | B17: 25 | C17: 25
A18: Размер одежды 120/124 | B18: 15 | C18: 13 | D18: 2
A19: Размер одежды 128/132 | B19: 9 | C19: 7 | D19: 2
A20: Жилет 6-ЖУ-МС-В | B20: 160 | C20: 19 | D20: 141
A21: Размер 128/132 | B21: 5 | D21: 5
A22: Размер 104/108 | B22: 45 | C22: 7 | D22: 38
A23: Размер 120/124 | B23: 15 | D23: 15
A24: Размер 88/92 | B24: 20 | C24: 5 | D24: 15
A25: Размер 112/116 | B25: 30 | C25: 4 | D25: 26
A26: Размер 96/100 | B26: 30 | C26: 3 | D26: 27
A27: Размер 80/84 | B27: 15 | D27: 15
A28: Каска СОМ3-55 Favori T арт75514 оранж. | B28: 125 | C28: 82 | D28: 43
A29: Каска СОМЗ-55Favori Tбел.арт75517 | B29: 17 | C29: 17
A30: Костюм муж.2-М2-ДТК | B30: 9 | C30: 6 | D30: 3
A31: Мужской, Размер одежды 88/92 | B31: 1 | C31: 1
A32: Мужской, Размер одежды 96/100 | B32: 5 | C32: 3 | D32: 2
A33: Мужской, Размер одежды 104/108 | B33: 2 | C33: 1 | D33: 1
A34: Размер одежды 112/116 | B34: 1 | C34: 1
A35: Костюм муж.2-М2-МС-В | B35: 22 | C35: 2 | D35: 20
A36: Размер 112/116 | B36: 4 | C36: 1 | D36: 3
A37: Размер 96/100 | B37: 6 | D37: 6
A38: Размер 88/92 | B38: 2 | D38: 2
A39: Размер 120/124 | B39: 4 | D39: 4
A40: Размер 104/108 | B40: 6 | C40: 1 | D40: 5
A41: Костюм муж.2-М2-МС-ДТК | B41: 23 | C41: 20 | D41: 3
A42: Размер одежды 80/84 | B42: 4 | C42: 4
A43: Размер одежды 88/92 | B43: 2 | C43: 2
A44: Размер одежды 96/100 | B44: 9 | C44: 6 | D44: 3
A45: Размер одежды 104/108 | B45: 6 | C45: 6
A46: Размер одежды 112/116 | B46: 2 | C46: 2
A47: Косынка 9-1-ЛК | B47: 255 | C47: 255
A48: Куртка жен.4-Ж-МС-В | B48: 231 | C48: 109 | D48: 122
A49: Размер 112/116 | B49: 46 | C49: 16 | D49: 30
A50: Размер 88/92 | B50: 25 | C50: 16 | D50: 9
A51: Размер 104/108 | B51: 45 | C51: 19 | D51: 26
A52: Размер 80/84 | B52: 26 | C52: 14 | D52: 12
A53: Размер 96/100 | B53: 55 | C53: 30 | D53: 25
A54: Размер одежды 128/132 | B54: 9 | C54: 2 | D54: 7
A55: Размер 120/124 | B55: 25 | C55: 12 | D55: 13
A56: Куртка муж.4-М-МС-В | B56: 11 | C56: 6 | D56: 5
A57: Размер 96/100 | B57: 5 | C57: 3 | D57: 2
A58: Размер 112/116 | B58: 1 | C58: 1
A59: Размер 104/108 | B59: 5 | C59: 2 | D59: 3
A60: Нарукавники 7-ЛК | B60: 3 | C60: 3
A61: Очки 050 MONACO super арт15030 | B61: 1028 | C61: 735 | D61: 293
A62: П/ботин.Форвелд 8КП кож.чер.композ.200ДЖ ПУ/Нитрил Рест | B62: 3 | C62: 2 | D62: 1
A63: Размер обуви 41 | B63: 1 | C63: 1
A64: Размер обуви 42 | B64: 1 | C64: 1
A65: Размер обуви 43 | B65: 1 | D65: 1
A66: Плащ муж.прорез. | B66: 4 | C66: 4
A67: Мужской, Размер 96/100 | B67: 3 | C67: 3
A68: Мужской, Размер 88/92 | B68: 1 | C68: 1
A69: Подшлемник | B69: 33 | C69: 33
A70: Подшлемник РОСОМ3 Favorit Crystaline(арт.00938) | B70: 200 | C70: 185 | D70: 15
A71: Подшлемник трикотаж. | B71: 45 | C71: 45
A72: Полуботинки | B72: 311 | C72: 277 | D72: 34
A73: Размер 35 | B73: 24 | C73: 19 | D73: 5
A74: Размер 36 | B74: 31 | C74: 31
A75: Размер 38 | B75: 50 | C75: 48 | D75: 2
A76: Размер 44 | B76: 3 | C76: 2 | D76: 1
A77: Размер 37 | B77: 48 | C77: 40 | D77: 8
A78: Размер 42 | B78: 15 | C78: 7 | D78: 8
A79: Размер 39 | B79: 64 | C79: 64
A80: Размер 41 | B80: 28 | C80: 26 | D80: 2
A81: Размер 40 | B81: 37 | C81: 36 | D81: 1
A82: Размер 43 | B82: 10 | C82: 4 | D82: 6
A83: Размер 45 | B83: 1 | D83: 1
A84: Размер обуви 34 | B84: 6 | C84: 5 | D84: 1
A85: Размер обуви 40 | B85: 1 | C85: 1
A86: Размер обуви 40 | B86: 1 | C86: 1
A87: Полуботинки(сандали) | B87: 13 | C87: 11 | D87: 2
A88: Размер 44 | B88: 1 | C88: 1
A89: Размер 37 | B89: 2 | C89: 2
A90: Размер 41 | B90: 4 | C90: 2 | D90: 2
A91: Размер 40 | B91: 3 | C91: 3
A92: Размер 42 | B92: 3 | C92: 3
A93: Пояс пояснич.Фиксар-1 | B93: 228 | C93: 216 | D93: 12
A94: Размер одежды 20(ML) | B94: 67 | C94: 67
A95: Размер одежды 20(S) | B95: 11 | C95: 3 | D95: 8
A96: Размер одежды 20(XL) | B96: 106 | C96: 102 | D96: 4
A97: Размер одежды 20(М) | B97: 44 | C97: 44
A98: Сапоги комбин.юфт.кирза | B98: 2 | C98: 2
A99: Размер обуви 37 | B99: 1 | C99: 1
A100: Размер обуви 38 | B100: 1 | C100: 1
A101: Сапоги комбинир.юфт.кирза | B101: 1 | C101: 1
A102: Размер 41 | B102: 1 | C102: 1
A103: Сапоги ПВХ Е-34 МБС черный | B103: 1 | C103: 1
A104: Размер обуви 38 | B104: 1 | C104: 1
A105: Сапоги юфт.комб.утепл. | B105: 1 | C105: 1
A106: Размер 39 | B106: 1 | C106: 1
A107: Сапоги юфт.комбин.утепл. | B107: 1 | C107: 1
A108: Размер обуви 40 | B108: 1 | C108: 1
A109: Толстовка 10-РСиС | B109: 1 | C109: 1
A110: Размер 96/100 | B110: 1 | C110: 1
A111: Фартук 8-ЛК | B111: 100 | C111: 80 | D111: 20
A112: Футболка 5-ЛК-О | B112: 245 | C112: 218 | D112: 27
A113: Размер одежды 120/124 | B113: 14 | C113: 14
A114: Размер одежды 128/132 | B114: 3 | C114: 3
A115: Размер 96/100 | B115: 86 | C115: 68 | D115: 18
A116: Размер 104/108 | B116: 64 | C116: 55 | D116: 9
A117: Размер 112/116 | B117: 35 | C117: 35
A118: Размер одежды 88/92 | B118: 43 | C118: 43
A119: Халат жен.1-Ж-ДТК-МС-В | B119: 566 | C119: 392 | D119: 174
A120: Размер 128/132 | B120: 62 | C120: 30 | D120: 32
A121: Размер 104/108 | B121: 99 | C121: 76 | D121: 23
A122: Размер 112/116 | B122: 77 | C122: 53 | D122: 24
A123: Размер 120/124 | B123: 61 | C123: 53 | D123: 8
A124: Размер 80/84 | B124: 77 | C124: 36 | D124: 41
A125: Размер 88/92 | B125: 83 | C125: 64 | D125: 19
A126: Размер одежды 96/100 | B126: 99 | C126: 80 | D126: 19
A127: Размер одежды 136/140 | B127: 8 | D127: 8
A128: Халат муж.1-М-ДТК | B128: 2 | C128: 2
A129: Размер одежды 104/108 | B129: 2 | C129: 2
A130: Халат муж.1-М-ДТК-МС-В | B130: 23 | C130: 7 | D130: 16
A131: Мужской, Размер одежды 120/124 | B131: 4 | D131: 4
A132: Мужской, Размер одежды 112/116 | B132: 5 | C132: 1 | D132: 4
A133: Размер одежды 88/92 | B133: 2 | D133: 2
A134: Размер одежды 104/108 | B134: 6 | C134: 4 | D134: 2
A135: Размер одежды 96/100 | B135: 6 | C135: 2 | D135: 4
A136: Итого | B136: =B2+B6+B8+B10+B13+B20+B28+B29+B30+B35+B41+B47+B48+B56+B60+B61+B62+B66+B69+B70+B71+B72+B87+B93+B98+B101+B103+B105+B107+B109+B111+B112+B119+B128+B130 -> 3814 | C136: =C2+C6+C8+C10+C13+C20+C28+C29+C30+C35+C41+C47+C48+C56+C60+C61+C62+C66+C69+C70+C71+C72+C87+C93+C98+C101+C103+C105+C107+C109+C111+C112+C119+C128+C130 -> 2869 | D136: 945
